bitfinex/quotes_BTCUSD_20220109
["timestamp","ask_amount","ask_price","bid_price","bid_amount"]
[1641756713141,0.058658,42634.0,42625.0,0.25]
[1641756713343,0.44926397,42626.0,42625.0,0.25]
[1641756713542,0.83216997,42626.0,42625.0,0.25]
[1641756713942,0.89083897,42626.0,42625.0,0.25]
[1641756714186,1.49083897,42626.0,42625.0,0.25]
[1641756714579,1.48246321,42626.0,42625.0,0.25]
[1641756714780,0.88246321,42626.0,42625.0,0.25]
[1641756714979,0.88236321,42626.0,42625.0,0.25]
[1641756715183,0.88236321,42626.0,42612.0,0.0001256]
[1641756715184,1.3998,42625.0,42612.0,0.0001256]
[1641756715384,1.14936397,42613.0,42612.0,0.0001256]
[1641756715581,1.53246997,42613.0,42612.0,0.0001256]
[1641756716083,0.79612014,42613.0,42612.0,0.0001256]
[1641756716387,0.79612014,42613.0,42598.0,0.00126312]
[1641756716388,0.79612014,42613.0,42610.0,0.00021271]
[1641756716581,0.41301414,42613.0,42610.0,0.00021271]
[1641756716781,0.11711578,42611.0,42610.0,0.00021271]
[1641756717082,0.11681578,42611.0,42610.0,0.00021271]
[1641756717282,0.81681578,42611.0,42610.0,0.00021271]
[1641756717482,0.11681578,42611.0,42609.0,0.00021271]
[1641756717682,0.31365017,42613.0,42609.0,0.00021271]
[1641756717928,0.09936397,42610.0,42609.0,0.00021271]
[1641756718129,0.0992214,42610.0,42609.0,0.00021271]
[1641756719128,0.0992214,42610.0,42609.0,0.55021271]
[1641756719328,0.0992214,42614.0,42609.0,0.94261375]
[1641756719529,0.09945495,42617.0,42609.0,0.94261375]
[1641756719729,9.098e-05,42617.0,42609.0,0.94240104]
[1641756719931,9.098e-05,42617.0,42608.0,0.05867395]
[1641756719932,0.0992214,42610.0,42608.0,0.05867395]
[1641756720133,0.0992214,42610.0,42607.0,0.00020461]
[1641756720728,0.0992214,42610.0,42607.0,0.00040636]
[1641756720929,0.30162711,42609.0,42607.0,0.00020175]
[1641756721135,4.683e-05,42609.0,42607.0,0.00020175]
[1641756721977,4.683e-05,42609.0,42606.0,0.00020176]
[1641756722380,0.0992214,42607.0,42606.0,0.00020176]
[1641756722578,0.35,42606.0,42602.0,0.68149015]
[1641756722778,0.0992214,42607.0,42602.0,0.68149015]
[1641756722978,0.0992214,42607.0,42605.0,0.00020596]
[1641756723782,0.1579174,42607.0,42605.0,0.00020596]
[1641756723983,0.00121552,42606.0,42605.0,0.00020596]
[1641756724185,0.24949529,42593.0,42591.0,0.35808244]
[1641756724381,0.0992214,42592.0,42588.0,0.35025849]
[1641756724581,0.0992214,42589.0,42588.0,0.35025849]
[1641756724781,0.0992214,42589.0,42588.0,0.96769904]
[1641756725435,0.0992214,42589.0,42588.0,0.61744055]
[1641756725834,0.24949529,42593.0,42588.0,0.61744055]
[1641756726036,0.0992214,42594.0,42588.0,0.61744055]
[1641756726434,0.0992214,42594.0,42589.0,0.33092858]
[1641756726635,0.0992214,42590.0,42588.0,0.61744055]
[1641756727235,0.0992214,42590.0,42588.0,0.36286716]
[1641756727638,0.0992214,42596.0,42589.0,0.34768101]
[1641756728336,0.0992214,42597.0,42589.0,0.34768101]
[1641756728637,0.38408317,42597.0,42592.0,0.30549677]
[1641756728838,0.38408317,42597.0,42593.0,0.3251076]
[1641756729082,0.0992214,42594.0,42590.0,0.00021277]
[1641756729285,0.5992214,42591.0,42590.0,0.00021277]
[1641756729486,0.0792214,42591.0,42590.0,0.00021277]
[1641756729785,0.117435,42595.0,42593.0,0.00021001]
[1641756729983,0.9292214,42594.0,42593.0,0.00021001]
[1641756730183,1.2292214,42594.0,42593.0,0.00021001]
[1641756730386,0.9292214,42594.0,42593.0,0.00021001]
[1641756730584,0.9879364,42594.0,42593.0,0.00021001]
[1641756730787,0.98765394,42594.0,42592.0,0.00021001]
[1641756730982,0.00120771,42593.0,42592.0,0.00021001]
[1641756731989,0.058715,42592.0,42590.0,0.00020201]
[1641756732186,0.07893894,42591.0,42590.0,0.00020201]
[1641756732826,0.10783514,42592.0,42590.0,0.00020201]
[1641756733031,0.10783514,42592.0,42583.0,0.43747297]
[1641756733032,0.89,42591.0,42589.0,0.00020201]
[1641756733226,0.24114289,42590.0,42589.0,0.00020201]
[1641756734129,0.058727,42588.0,42587.0,0.00020205]
[1641756734328,0.408727,42588.0,42587.0,0.00020205]
[1641756734533,0.40997532,42588.0,42587.0,0.00020205]
[1641756735035,0.40997532,42588.0,42585.0,0.00020615]
[1641756735036,1.15,42587.0,42585.0,0.00020615]
[1641756735429,1.25,42587.0,42585.0,0.00020615]
[1641756735629,1.15122874,42586.0,42579.0,0.00082471]
[1641756735829,0.058743,42583.0,42579.0,0.00082471]
[1641756736030,1.15,42582.0,42569.0,0.3460832]
[1641756736230,1.15,42582.0,42570.0,0.42059032]
[1641756736429,0.46612477,42584.0,42570.0,0.42059032]
[1641756736430,0.117485,42584.0,42570.0,0.42059032]
[1641756736676,0.00128334,42581.0,42570.0,0.41559032]
[1641756736881,0.058741,42576.0,42570.0,0.41559032]
[1641756737182,0.24416611,42575.0,42570.0,0.41559032]
[1641756737678,0.24416611,42575.0,42567.0,0.28268266]
[1641756737878,0.058743,42571.0,42565.0,2.03399943]
[1641756738278,0.01615951,42575.0,42566.0,0.95]
[1641756738477,0.00124002,42574.0,42566.0,0.95]
[1641756738678,0.01615951,42575.0,42566.0,0.95]
[1641756739079,0.01615951,42575.0,42572.0,0.33878519]
[1641756739478,0.01615951,42575.0,42573.0,0.31842818]
[1641756739878,0.01615951,42575.0,42573.0,0.31342818]
[1641756740077,0.07489851,42575.0,42568.0,0.00021283]
[1641756740734,0.07489851,42575.0,42572.0,0.0002087]
[1641756740935,0.01489851,42575.0,42572.0,0.0002087]
[1641756741139,0.2819914,42574.0,42572.0,0.0002087]
[1641756741536,1.00015006,42581.0,42572.0,0.0002087]
[1641756741537,0.058735,42578.0,42572.0,0.0002087]
[1641756741736,1.00015006,42581.0,42572.0,0.0002087]
[1641756741935,1.00015006,42581.0,42571.0,0.0002087]
[1641756742735,1.00015006,42581.0,42579.0,0.39205075]
[1641756742936,1.00014241,42581.0,42579.0,0.39205075]
[1641756743136,1.24014241,42581.0,42579.0,0.39205075]
[1641756743337,1.24014241,42581.0,42579.0,0.38705075]
[1641756744084,1.24,42581.0,42579.0,0.38705075]
[1641756746488,0.00014233,42582.0,42581.0,1.33394582]
[1641756746687,2.33e-06,42582.0,42581.0,2.26278277]
[1641756746889,0.92095961,42602.0,42582.0,1.247]
[1641756747186,0.9197,42602.0,42591.0,0.00129291]
[1641756747392,0.00056903,42604.0,42591.0,0.00129291]
[1641756747687,0.00056903,42604.0,42597.0,0.00128719]
[1641756747943,1.5137,42611.0,42603.0,0.95]
[1641756747944,0.9162,42611.0,42603.0,0.95]
[1641756748243,0.9162,42611.0,42604.0,0.37023822]
[1641756748441,0.0001,42619.0,42604.0,0.37023822]
[1641756748643,0.0001,42619.0,42607.0,0.00129572]
[1641756748841,0.0001,42619.0,42609.0,0.27593437]
[1641756749041,0.25572979,42617.0,42610.0,0.79560147]
[1641756749943,0.0001,42621.0,42610.0,0.79560147]
[1641756750143,0.0001,42621.0,42618.0,0.00127536]
[1641756750343,0.0001,42621.0,42620.0,0.00126913]
[1641756750742,0.0001,42621.0,42620.0,0.00125714]
[1641756751143,0.0001,42621.0,42620.0,0.38444514]
[1641756751445,0.0001,42621.0,42620.0,0.77684272]
[1641756751687,0.0002,42632.0,42629.0,0.50136804]
[1641756752982,0.00034281,42632.0,42629.0,0.50136804]
[1641756753983,0.2402,42630.0,42629.0,0.50136804]
[1641756754586,0.2902,42630.0,42629.0,0.50136804]
[1641756754784,0.2902,42630.0,42629.0,0.40146804]
[1641756754785,1.44001243,42630.0,42629.0,0.40146804]
[1641756754988,1.3901,42630.0,42629.0,0.40146804]
[1641756755423,1.8402654,42630.0,42629.0,0.40146804]
[1641756755825,1.8352654,42630.0,42629.0,0.40146804]
[1641756756126,1.8352654,42630.0,42610.0,0.0012895]
[1641756756127,0.058682,42617.0,42610.0,0.0012895]
[1641756756327,2.16935566,42628.0,42610.0,0.0012895]
[1641756756526,0.29573762,42622.0,42610.0,0.0012895]
[1641756756726,0.05869133,42615.0,42605.0,0.33204092]
[1641756756924,0.05869133,42615.0,42602.0,0.00145253]
[1641756756925,0.27333855,42613.0,42602.0,0.00145253]
[1641756757130,0.058691,42610.0,42602.0,0.00145253]
[1641756757425,0.058691,42610.0,42602.0,0.00020601]
[1641756757827,0.00143942,42618.0,42602.0,0.00020601]
[1641756758025,0.00143942,42618.0,42608.0,0.27872687]
[1641756758026,0.00014129,42618.0,42608.0,0.27872687]
[1641756758225,0.058682,42617.0,42608.0,0.27872687]
[1641756758534,0.05924728,42617.0,42608.0,0.27872687]
[1641756758725,0.09506001,42621.0,42608.0,0.27872687]
[1641756758927,0.15374275,42621.0,42608.0,0.27872687]
[1641756759388,0.11738,42615.0,42602.0,0.27127458]
[1641756759584,0.11738,42615.0,42601.0,0.00122608]
[1641756759787,0.25382436,42610.0,42601.0,0.00122608]
[1641756760587,0.058696,42607.0,42599.0,0.33887673]
[1641756760989,0.9263,42613.0,42602.0,0.42983015]
[1641756761185,0.9263,42613.0,42607.0,0.00122489]
[1641756761385,0.9263,42613.0,42603.0,0.33169585]
[1641756761586,0.9263,42613.0,42601.0,0.00120642]
[1641756761784,0.058691,42611.0,42605.0,0.00012512]
[1641756762186,0.9263,42613.0,42605.0,0.00012512]
[1641756762836,0.9263,42613.0,42608.0,0.28083843]
[1641756763036,0.5514479,42616.0,42606.0,0.00021272]
[1641756764034,0.5514479,42616.0,42609.0,0.00021271]
[1641756764536,0.55065327,42616.0,42609.0,0.00021271]
[1641756764736,0.5912279,42616.0,42609.0,0.00021271]
[1641756764934,0.64991865,42616.0,42609.0,0.00021271]
[1641756765134,0.5912279,42616.0,42610.0,0.00021271]
[1641756766135,0.298684,42616.0,42611.0,0.00020859]
[1641756766338,0.24,42616.0,42611.0,0.00020859]
[1641756766776,0.24,42616.0,42609.0,0.30318198]
[1641756766777,0.7,42615.0,42609.0,0.30318198]
[1641756767176,0.7,42615.0,42601.0,0.17089272]
[1641756767376,0.7,42615.0,42611.0,0.00020575]
[1641756768577,0.7,42615.0,42601.0,0.00120642]
[1641756769378,0.26465954,42607.0,42601.0,0.30345327]
[1641756769577,0.7,42615.0,42601.0,0.30345327]
[1641756769578,0.32208003,42612.0,42601.0,0.30345327]
[1641756769779,0.058694,42609.0,42602.0,0.30810187]
[1641756769980,0.058694,42609.0,42601.0,0.30345327]
[1641756770180,0.32208003,42612.0,42601.0,0.30345327]
[1641756770425,0.117388,42614.0,42602.0,0.30605764]
[1641756770634,0.28766805,42612.0,42603.0,0.00012512]
[1641756771725,0.28766805,42612.0,42605.0,0.0002103]
[1641756772127,0.05869,42612.0,42608.0,0.33365081]
[1641756772327,0.00014638,42616.0,42609.0,0.38661542]
[1641756773031,0.00014639,42616.0,42609.0,0.44528588]
[1641756774178,0.24014641,42616.0,42609.0,0.44549617]
[1641756775079,0.24014641,42616.0,42609.0,0.38682571]
[1641756775683,0.24014641,42616.0,42613.0,0.00120527]
[1641756776182,0.24014641,42616.0,42609.0,0.38682571]
[1641756776183,0.17403676,42616.0,42615.0,0.00128255]
[1641756776385,0.17403048,42616.0,42615.0,2.78147055]
[1641756776582,0.05134848,42616.0,42615.0,2.78147055]
[1641756776884,0.0005604,42624.0,42623.0,0.7]
[1641756777082,0.0005604,42624.0,42623.0,1.5296751]
[1641756777282,0.0005604,42624.0,42623.0,1.14305968]
[1641756777583,0.00056046,42624.0,42623.0,1.14305968]
[1641756777830,0.00056046,42624.0,42623.0,1.45621025]
[1641756778030,0.00056046,42624.0,42623.0,1.39756325]
[1641756778230,0.00056046,42624.0,42623.0,1.53182099]
[1641756778433,0.00056046,42624.0,42623.0,0.832055]
[1641756778631,0.00022938,42630.0,42623.0,0.448867]
[1641756778830,0.00022938,42630.0,42623.0,0.44764232]
[1641756779230,0.00022938,42630.0,42618.0,0.00128042]
[1641756779431,0.00022938,42630.0,42619.0,0.35578509]
[1641756779631,0.00022938,42630.0,42620.0,0.38323804]
[1641756780229,0.00012908,42630.0,42620.0,0.38323804]
[1641756780429,0.00012908,42630.0,42620.0,0.71047583]
[1641756780631,0.00012908,42630.0,42621.0,0.05865672]
[1641756780831,0.00014448,42627.0,42621.0,0.05865672]
[1641756781035,0.00014448,42627.0,42620.0,0.71047583]
[1641756781880,0.00014448,42627.0,42625.0,0.00121438]
[1641756782280,0.00014448,42627.0,42624.0,0.00129839]
[1641756782882,0.00014448,42627.0,42620.0,0.11730461]
[1641756783080,0.00014448,42627.0,42618.0,0.00123726]
[1641756783280,0.00014448,42627.0,42616.0,0.00120108]
[1641756783480,0.27063353,42630.0,42616.0,0.00120108]
[1641756783687,0.32617072,42620.0,42616.0,0.00120108]
[1641756783881,0.32617072,42620.0,42612.0,0.00021273]
[1641756784080,0.00120225,42626.0,42612.0,0.27519343]
[1641756784780,0.00014457,42628.0,42614.0,0.00120226]
[1641756784980,0.058664,42630.0,42616.0,0.05866398]
[1641756785182,0.24,42620.0,42614.0,0.00120226]
[1641756785434,0.24,42620.0,42616.0,0.2901692]
[1641756785635,0.24,42620.0,42617.0,0.383188]
[1641756785836,0.26470509,42627.0,42624.0,0.64510552]
[1641756786138,0.0001,42631.0,42624.0,0.64510552]
[1641756786736,0.39871649,42639.0,42624.0,0.64510552]
[1641756786934,0.65671088,42639.0,42632.0,0.31318726]
[1641756787135,0.39871649,42639.0,42632.0,0.31318726]
[1641756787336,0.0004,42640.0,42633.0,0.38498876]
[1641756787537,0.0004,42640.0,42635.0,0.00128389]
[1641756788435,0.0004,42640.0,42633.0,0.38498876]
[1641756788635,0.0004,42640.0,42633.0,0.38626535]
[1641756788840,0.0004,42640.0,42626.0,0.00127354]
[1641756789282,0.00014435,42639.0,42633.0,0.37300671]
[1641756789481,0.00014435,42639.0,42634.0,0.38498876]
[1641756789681,0.00014435,42639.0,42637.0,0.00127729]
[1641756789882,0.00014435,42639.0,42637.0,0.31066959]
[1641756790082,0.00014435,42639.0,42638.0,0.30980798]
[1641756790284,0.00014435,42639.0,42633.0,0.43164618]
[1641756790483,0.00014435,42639.0,42634.0,0.38498876]
[1641756790882,0.00014435,42639.0,42630.0,0.38626032]
[1641756791083,0.00014435,42639.0,42635.0,0.00127423]
[1641756791886,0.00014435,42639.0,42635.0,0.0599114]
[1641756792832,0.00014435,42639.0,42638.0,0.00125909]
[1641756793030,0.00014435,42639.0,42635.0,0.0599114]
[1641756793031,0.00014435,42639.0,42637.0,0.32551916]
[1641756793233,0.00014435,42639.0,42634.0,0.31660189]
[1641756793431,0.00014435,42639.0,42627.0,0.0012132]
[1641756793730,0.0004,42640.0,42627.0,0.0012132]
[1641756794138,0.00033987,42641.0,42628.0,0.05864647]
[1641756794333,0.2610742,42638.0,42633.0,0.31360778]
[1641756794932,0.00013986,42636.0,42628.0,0.4]
[1641756795333,0.00013986,42636.0,42627.0,0.39058381]
[1641756795835,0.30513673,42629.0,42628.0,0.30688021]
[1641756796034,0.30513673,42629.0,42628.0,0.383188]
[1641756796237,0.24,42640.0,42628.0,0.76820789]
[1641756796433,0.24,42640.0,42633.0,0.00121968]
[1641756797085,0.32272284,42639.0,42633.0,0.34823172]
[1641756797487,0.29573837,42646.0,42645.0,0.03671638]
[1641756797887,0.26556788,42638.0,42634.0,0.38498876]
[1641756798286,0.26556788,42638.0,42633.0,0.34823172]
[1641756798688,0.96328362,42640.0,42634.0,0.33037784]
[1641756799890,0.96328362,42640.0,42629.0,0.11727698]
[1641756800093,0.00128995,42636.0,42624.0,0.34214743]
[1641756800337,0.00128995,42636.0,42624.0,0.34091983]
[1641756800938,0.00128995,42636.0,42627.0,0.32394613]
[1641756801138,0.00128995,42636.0,42628.0,0.44093166]
[1641756801944,0.96328362,42640.0,42628.0,0.44093166]
[1641756802340,0.96328362,42640.0,42634.0,0.2826151]
[1641756802541,0.96328362,42640.0,42628.0,0.44093166]
[1641756803142,0.96328362,42640.0,42632.0,0.00126318]
[1641756803343,0.96328362,42640.0,42639.0,0.43017778]
[1641756803643,0.96328362,42640.0,42639.0,0.32879409]
[1641756804089,0.96328362,42640.0,42634.0,0.11726328]
[1641756804090,0.96328362,42640.0,42635.0,0.35342588]
[1641756804283,0.96328362,42640.0,42632.0,0.00126318]
[1641756804486,0.96328362,42640.0,42635.0,0.05863684]
[1641756804685,1.20328362,42640.0,42635.0,0.05863684]
[1641756804884,1.20328362,42640.0,42632.0,0.00126318]
[1641756805084,1.20328362,42640.0,42629.0,0.30214804]
[1641756805383,1.20328362,42640.0,42630.0,0.34542023]
[1641756806184,1.20328362,42640.0,42634.0,0.05863872]
[1641756806485,1.20328362,42640.0,42636.0,0.32236948]
[1641756807388,0.22013635,42640.0,42636.0,0.32236948]
[1641756807585,0.22013635,42640.0,42637.0,0.383188]
[1641756807825,0.22013635,42640.0,42638.0,0.32797499]
[1641756808026,0.22013635,42640.0,42639.0,0.383188]
[1641756808426,0.22013635,42640.0,42639.0,0.70860939]
[1641756809026,0.22013635,42640.0,42639.0,0.69860939]
[1641756812478,0.21855637,42640.0,42639.0,0.382947]
[1641756812678,0.21855637,42640.0,42636.0,0.43962742]
[1641756812879,0.21855637,42640.0,42637.0,0.382947]
[1641756813680,0.21855637,42640.0,42636.0,0.32236948]
[1641756815081,0.21855637,42640.0,42635.0,0.00123207]
[1641756815338,0.21855637,42640.0,42630.0,1.364265]
[1641756815737,0.21779416,42640.0,42630.0,1.364265]
[1641756815940,0.21779416,42640.0,42631.0,0.382947]
[1641756816140,0.21779416,42640.0,42632.0,0.28497134]
[1641756816141,0.29135593,42637.0,42632.0,0.28497134]
[1641756816338,0.29135593,42637.0,42633.0,0.382947]
[1641756816539,0.21779416,42640.0,42633.0,0.382947]
[1641756816737,0.21779416,42640.0,42632.0,0.28497134]
[1641756816938,0.21379416,42640.0,42632.0,0.28497134]
[1641756817643,0.24919558,42639.0,42633.0,0.382947]
[1641756818038,0.21379416,42640.0,42633.0,0.50021543]
[1641756818538,0.21379416,42640.0,42633.0,0.382947]
[1641756818737,0.21379416,42640.0,42632.0,0.2812313]
[1641756818938,0.21379416,42640.0,42633.0,0.382947]
[1641756819188,0.21379416,42640.0,42633.0,1.247]
[1641756819889,0.28799979,42635.0,42632.0,0.00125996]
[1641756820092,0.28799979,42635.0,42623.0,1.247]
[1641756820294,0.28799979,42635.0,42626.0,0.382947]
[1641756820888,0.28799979,42635.0,42628.0,0.30484731]
[1641756821089,0.28799979,42635.0,42629.0,0.382947]
[1641756821489,0.21379416,42640.0,42629.0,0.382947]
[1641756821690,0.21379416,42640.0,42628.0,0.42212603]
[1641756822090,0.21379416,42640.0,42632.0,0.00129252]
[1641756822590,0.24885327,42634.0,42628.0,0.29984731]
[1641756822834,0.21379416,42640.0,42629.0,0.382947]
[1641756823033,0.21379416,42640.0,42628.0,0.29984731]
[1641756823233,0.21379416,42640.0,42633.0,0.05863711]
[1641756823433,0.21379416,42640.0,42637.0,0.00122215]
[1641756824433,0.21379416,42640.0,42637.0,0.31276171]
[1641756825033,0.21379416,42640.0,42635.0,0.05863]
[1641756825034,0.21379416,42640.0,42635.0,0.11725937]
[1641756825438,0.21179416,42640.0,42635.0,0.11725937]
[1641756825737,0.21179416,42640.0,42636.0,0.32957491]
[1641756825933,0.21179416,42640.0,42638.0,0.30140086]
[1641756826591,0.21179416,42640.0,42636.0,0.32957491]
[1641756827583,0.01106782,42651.0,42638.0,0.3]
[1641756827785,0.00013971,42643.0,42639.0,0.39024514]
[1641756828188,0.00013971,42643.0,42642.0,0.00125106]
[1641756828389,0.39959864,42649.0,42642.0,0.45556761]
[1641756828390,0.39913835,42649.0,42642.0,0.45556761]
[1641756828586,0.0003,42650.0,42647.0,0.00128266]
[1641756828789,0.50845412,42651.0,42648.0,0.04446683]
[1641756828790,0.50805412,42651.0,42648.0,0.04446683]
[1641756828986,0.50805412,42651.0,42650.0,2.329947]
[1641756829188,0.0003,42665.0,42655.0,0.00579585]
[1641756829392,0.0003,42665.0,42660.0,0.19836787]
[1641756829593,0.0003,42665.0,42660.0,0.54504512]
[1641756829788,0.0003,42665.0,42660.0,0.19836787]
[1641756829990,0.733247,42661.0,42660.0,0.19836787]
[1641756830347,1.06486016,42661.0,42660.0,0.19836787]
[1641756830555,1.06486016,42661.0,42655.0,0.00579585]
[1641756830556,1.0,42660.0,42655.0,0.00579585]
[1641756830744,0.4,42656.0,42655.0,0.00579585]
[1641756830946,0.382947,42656.0,42655.0,0.00579585]
[1641756831648,0.33315706,42661.0,42655.0,0.00579585]
[1641756831649,0.33191316,42661.0,42655.0,0.00579585]
[1641756831847,0.382947,42660.0,42655.0,0.00579585]
[1641756832248,0.00014519,42658.0,42655.0,0.00579585]
[1641756832447,0.382947,42657.0,42655.0,0.00579585]
[1641756832848,1.532947,42656.0,42655.0,9.585e-05]
[1641756833050,1.73449359,42656.0,42655.0,9.585e-05]
[1641756833858,1.3259169,42655.0,42651.0,0.02686036]
[1641756834089,0.00122496,42650.0,42642.0,0.38188489]
[1641756834290,0.382947,42649.0,42642.0,0.38188489]
[1641756834891,0.26388775,42644.0,42642.0,0.38188489]
[1641756835095,0.25888775,42644.0,42642.0,0.38188489]
[1641756835296,0.25888775,42644.0,42633.0,0.00122096]
[1641756835297,0.38188489,42642.0,42633.0,0.00122096]
[1641756835494,0.382947,42641.0,42633.0,0.00122096]
[1641756835695,0.382947,42641.0,42624.0,0.33591983]
[1641756836093,0.26539994,42628.0,42624.0,0.67357921]
[1641756837094,0.0012504,42638.0,42624.0,0.33591983]
[1641756837296,0.00123738,42627.0,42624.0,0.33591983]
[1641756837492,0.117334,42644.0,42640.0,0.20652019]
[1641756837694,0.00121139,42626.0,42625.0,0.39625576]
[1641756837941,0.00120576,42625.0,42624.0,0.3360416]
[1641756838142,1.67510637,42625.0,42624.0,0.3360416]
[1641756838345,1.05805337,42625.0,42624.0,0.3360416]
[1641756838540,0.70739475,42625.0,42624.0,0.3360416]
[1641756838739,0.32444775,42625.0,42624.0,0.3360416]
[1641756838939,0.32444775,42625.0,42624.0,0.33591983]
[1641756839141,0.26577175,42625.0,42624.0,0.33591983]
[1641756839341,0.00120576,42625.0,42624.0,0.58831699]
[1641756839542,0.00126526,42635.0,42624.0,1.4400879]
[1641756839740,0.00126526,42635.0,42624.0,0.58831699]
[1641756839942,0.382947,42634.0,42624.0,0.33591983]
[1641756840543,0.058663,42630.0,42624.0,0.33591983]
[1641756840741,0.27121217,42629.0,42624.0,0.33591983]
[1641756840947,0.27121217,42629.0,42627.0,0.00020862]
[1641756841592,0.058658,42634.0,42627.0,0.00020862]
[1641756841790,0.382947,42633.0,42627.0,0.00020862]
[1641756842191,0.382947,42633.0,42626.0,0.00020862]
[1641756842394,0.058658,42634.0,42629.0,0.1]
[1641756842591,0.00126526,42635.0,42626.0,0.00020862]
[1641756842592,0.058663,42630.0,42626.0,0.00020862]
[1641756842990,0.00123283,42634.0,42626.0,0.00020862]
[1641756843391,0.38188489,42642.0,42629.0,0.00020581]
[1641756843595,0.29564057,42632.0,42629.0,0.00020581]
[1641756844394,0.29564057,42632.0,42624.0,0.33591983]
[1641756844997,0.35430157,42632.0,42624.0,0.33591983]
[1641756845434,0.35430157,42632.0,42626.0,0.00020569]
[1641756845834,0.45967962,42627.0,42626.0,0.00020569]
[1641756846036,0.51834962,42627.0,42626.0,0.00020569]
[1641756846435,0.75834962,42627.0,42626.0,0.00020569]
[1641756846635,1.14129662,42627.0,42624.0,0.33591983]
[1641756846837,0.382947,42625.0,42624.0,0.33591983]
[1641756847035,0.65398155,42625.0,42624.0,0.33591983]
[1641756848037,0.71265455,42625.0,42624.0,0.33591983]
[1641756849489,1.17541976,42625.0,42624.0,0.33591983]
[1641756850189,1.37667152,42625.0,42624.0,0.33591983]
[1641756850390,1.72667152,42625.0,42624.0,0.33591983]
[1641756850590,1.15,42624.0,42622.0,0.00020615]
[1641756850793,2.11593248,42623.0,42622.0,0.00020615]
[1641756850995,0.058698,42614.0,42605.0,0.2852808]
[1641756851190,0.058699,42617.0,42599.0,1.14856206]
[1641756851191,0.00124618,42610.0,42602.0,0.2852808]
[1641756851592,0.31298968,42608.0,42602.0,0.2852808]
[1641756851990,0.31298968,42608.0,42601.0,0.28666918]
[1641756852194,0.37168768,42608.0,42604.0,0.0002062]
[1641756853431,0.37168768,42608.0,42604.0,0.1002062]
[1641756853633,0.382947,42607.0,42604.0,0.1002062]
[1641756853836,0.382947,42607.0,42604.0,0.0002062]
[1641756854236,0.00122464,42608.0,42604.0,0.0004124]
[1641756854434,0.16175121,42610.0,42604.0,0.0002062]
[1641756854435,0.00081236,42607.0,42604.0,0.0002062]
[1641756854636,2.20977301,42606.0,42604.0,0.0002062]
[1641756854837,2.20977301,42606.0,42604.0,8.62e-05]
[1641756855035,0.908707,42605.0,42604.0,8.62e-05]
[1641756855435,0.908707,42605.0,42603.0,0.00020607]
[1641756855436,1.29666014,42605.0,42603.0,0.00020607]
[1641756855634,1.38922716,42605.0,42603.0,0.00020607]
[1641756856035,1.167427,42604.0,42603.0,0.00020607]
[1641756856437,1.22613878,42604.0,42603.0,0.00020607]
[1641756856685,0.28119023,42598.0,42594.0,0.1]
[1641756856883,0.117427,42604.0,42597.0,0.55339437]
[1641756857084,0.24127402,42605.0,42603.0,0.1]
[1641756857085,0.24,42605.0,42603.0,0.1]
[1641756857282,0.24,42605.0,42603.0,0.38381351]
[1641756857482,0.24,42605.0,42603.0,0.1]
[1641756857884,1.31036254,42604.0,42598.0,0.39334446]
[1641756858082,0.51078789,42604.0,42599.0,0.1]
[1641756858787,0.20042535,42604.0,42603.0,0.85]
[1641756858983,0.20042535,42604.0,42603.0,0.1]
[1641756859381,0.20042535,42604.0,42603.0,0.43167235]
[1641756859584,0.20042535,42604.0,42603.0,1.84131582]
[1641756859784,0.20042535,42604.0,42603.0,2.70952727]
[1641756859983,0.20042535,42604.0,42603.0,1.92784347]
[1641756860182,0.24,42605.0,42604.0,0.06311031]
[1641756860443,0.24,42605.0,42604.0,1.15]
[1641756860744,0.24,42605.0,42604.0,1.51041042]
[1641756860944,0.23946808,42605.0,42604.0,1.51041042]
[1641756861344,0.05946808,42605.0,42604.0,1.51041042]
[1641756861643,0.05946808,42605.0,42604.0,0.69522761]
[1641756861847,0.05946808,42605.0,42604.0,0.36041042]
[1641756862443,0.05946808,42605.0,42603.0,0.77784347]
[1641756862646,0.05946808,42605.0,42603.0,0.35964347]
[1641756863446,0.05946808,42605.0,42604.0,0.45625032]
[1641756864492,0.05946808,42605.0,42604.0,0.77730024]
[1641756864687,0.05946808,42605.0,42604.0,0.45625032]
[1641756865388,0.05946808,42605.0,42603.0,0.1]
[1641756866089,0.29517457,42605.0,42603.0,0.1]
[1641756866590,0.29517457,42605.0,42602.0,0.00020346]
[1641756866890,0.29517457,42605.0,42596.0,0.35059995]
[1641756866891,0.00128153,42603.0,42596.0,0.00081396]
[1641756867096,0.058712,42600.0,42596.0,0.00081396]
[1641756867290,0.058712,42600.0,42595.0,0.00081396]
[1641756867488,0.29588198,42597.0,42595.0,0.00081396]
[1641756867935,0.29588198,42597.0,42595.0,0.10081396]
[1641756868136,0.29588198,42597.0,42595.0,0.00081396]
[1641756868335,1.25,42604.0,42595.0,0.1]
[1641756868538,0.25771574,42599.0,42594.0,0.00012162]
[1641756868736,0.25771574,42599.0,42594.0,0.10012162]
[1641756868938,0.058712,42596.0,42595.0,0.84831846]
[1641756869138,3.10946808,42605.0,42595.0,0.34426827]
[1641756869438,3.05946808,42605.0,42603.0,0.1]
[1641756870037,3.05546808,42605.0,42603.0,0.1]
[1641756870236,3.05546808,42605.0,42601.0,0.44447135]
[1641756870237,3.05546808,42605.0,42595.0,0.00129044]
[1641756870439,3.05546808,42605.0,42600.0,0.00020637]
[1641756870838,3.05546808,42605.0,42602.0,0.1]
[1641756871139,3.05546808,42605.0,42600.0,0.00020637]
[1641756871590,3.05546808,42605.0,42600.0,0.00020619]
[1641756871985,0.058703,42603.0,42600.0,0.00020619]
[1641756872189,3.05546808,42605.0,42600.0,0.00020619]
[1641756872486,3.05546808,42605.0,42603.0,0.1]
[1641756872684,3.05546808,42605.0,42602.0,0.35179702]
[1641756872886,3.05546808,42605.0,42603.0,0.1]
[1641756873185,3.05646808,42605.0,42603.0,0.101]
[1641756873393,2.25684272,42605.0,42603.0,0.101]
[1641756873587,2.30684272,42605.0,42603.0,0.001]
[1641756873788,2.45684272,42605.0,42603.0,0.001]
[1641756873985,2.25684272,42605.0,42603.0,0.001]
[1641756874186,2.45684272,42605.0,42603.0,0.001]
[1641756874386,0.0587074,42604.0,42600.0,0.00020606]
[1641756874587,0.058712,42602.0,42600.0,0.00020606]
[1641756875187,0.058712,42602.0,42600.0,0.10020606]
[1641756876030,0.060699,42604.0,42600.0,0.1]
[1641756876231,0.060699,42604.0,42602.0,0.39389345]
[1641756876833,0.058699,42604.0,42602.0,0.39389345]
[1641756877032,0.300699,42604.0,42602.0,0.39389345]
[1641756877634,0.300699,42604.0,42603.0,0.1]
[1641756877836,0.242,42604.0,42603.0,0.1]
[1641756878234,0.24,42604.0,42603.0,0.1]
[1641756878436,0.71407543,42605.0,42604.0,1.15]